Cogmind - Beta 13 @@@ ROGUE MODE // 2024.04.05 @ 19:16:08 Player: Ciaphas Result: Self-destructed Performance ------------- Evolutions (3) 1500 Regions Visited (8) 1600 Robots Destroyed (74) 370 Value Destroyed (1742) 1742 Prototype IDs (31) 620 Alien Tech Used (0) 0 Bonus (300) 300 TOTAL SCORE: 6132 Bonus ------- Aligned with FarCom 300 Cogmind --------- Core Integrity 452/700 Matter 300/300 Energy 160/160 System Corruption 5% Temperature Cool (0) Movement Flying (32) Location -7/Factory Parts ------- > --- POWER (1) -------- Light Nuclear Core > --- PROPULSION (4) --- Improved VTOL Module Improved VTOL Module > --- UTILITY (6) ------ Structural Scanner Hacking Suite Hacking Suite Hacking Suite System Shield > --- WEAPON (2) ------- (None) > --- INVENTORY (5) ---- Large Battery (200) Large Matter Pod (40) Hacking Suite Improved Grenade Launcher Datajack Peak State ------------ > --- POWER ------------ Light Nuclear Core > --- PROPULSION ------- Armored Treads Improved VTOL Module Improved VTOL Module Xenon Bombardment Thruster > --- UTILITY ---------- Structural Scanner Improved Targeting Computer Weapon Cycler Light Armor Plating Graphene Brace > --- WEAPON ----------- Heavy Assault Rifle Axe > --- INVENTORY -------- Large Battery Large Matter Pod Hacking Suite Datajack [Rating: 38] Favorites ----------- Power Ion Engine Engine Ion Engine Power Core Light Nuclear Core Propulsion Light Treads Treads Light Treads Leg Aluminum Leg Wheel Wheel Flight Unit Improved VTOL Module Utility High-capacity Storage Unit Device Structural Scanner Storage High-capacity Storage Unit Processor Improved Targeting Computer Hackware Hacking Suite Protection Propulsion Shielding Weapon Heavy Assault Rifle Ballistic Gun Heavy Assault Rifle Launcher Advanced EMP Blaster Special Weapon Mining Laser Slashing Weapon Axe Build | -11 -10 -10 -9 -9 -9 -8 -8 -7 ------- Run | Yrd Mat Min Mat Min Exi Min Mat Fac Slots Evolved 6 | . . . 2 . . . 2 2 Power . | . . . . . . . . . Propulsion 2 | . . . 1 . . . . 1 Utility 4 | . . . 1 . . . 2 1 Weapon . | . . . . . . . . . Parts Attached 74 | 3 11 . 22 2 1 2 17 16 Power 11 | . 2 . 2 1 . . 4 2 Engine 8 | . 2 . 2 1 . . 2 1 Core 3 | . . . . . . . 2 1 Reactor . | . . . . . . . . . Propulsion 20 | 2 2 . 8 1 . . 4 3 Treads 16 | 2 1 . 8 1 . . 4 . Leg . | . . . . . . . . . Wheel 1 | . 1 . . . . . . . Hover . | . . . . . . . . . Flight 3 | . . . . . . . . 3 Utility 27 | . 4 . 7 . 1 2 7 6 Device 11 | . 1 . 4 . 1 1 4 . Storage 2 | . 2 . . . . . . . Processor 1 | . . . 1 . . . . . Hackware 5 | . . . . . . . . 5 Protection 8 | . 1 . 2 . . 1 3 1 Artifact . | . . . . . . . . . Weapon 16 | 1 3 . 5 . . . 2 5 Energy Gun . | . . . . . . . . . Energy Cannon . | . . . . . . . . . Ballistic Gun 11 | 1 2 . 5 . . . 1 2 Ballistic Cannon . | . . . . . . . . . Launcher 1 | . . . . . . . . 1 Special Weapon 1 | . 1 . . . . . . . Impact Weapon . | . . . . . . . . . Slashing Weapon 3 | . . . . . . . 1 2 Piercing Weapon . | . . . . . . . . . Special Melee Weapon . | . . . . . . . . . Unidentified Prototypes 1 | . . . . . . . . 1 Parts Lost 9 | . 1 . 2 . . . 2 4 Power 1 | . . . . . . . 1 . Propulsion 1 | . . . . . . . . 1 Utility 3 | . . . 1 . . . 1 1 Weapon 4 | . 1 . 1 . . . . 2 Highest Loss Streak 3 | . 1 . 2 . . . 1 3 To Critical Strikes . | . . . . . . . . . Average Slot Usage (%) 97 | . 99 100 98 100 99 100 96 90 Engine 9 | . 14 14 11 11 11 11 4 1 Treads 26 | . 18 14 33 33 33 33 27 21 Wheel 2 | . 9 14 . . . . . . Device 12 | . 4 14 10 11 10 8 21 22 Storage 10 | . 14 14 11 11 11 11 9 6 Processor 5 | . . . 3 11 11 11 9 6 Protection 6 | . 9 . 7 . . 2 5 6 Ballistic Gun 21 | . 27 28 21 22 22 22 18 8 Naked Turns . | . . . . . . . . . Heaviest Build 90 | 14 90 49 57 53 53 52 60 59 Greatest Support 60 | 40 40 10 60 60 60 60 60 60 Greatest Overweight (x) 8 | . 8 4 . . . . . . Average Overweight (x) 1 | . 6 4 . . . . . . Largest Inventory Capacity 25 | 8 25 20 20 20 20 20 20 20 Average Capacity 20 | 8 23 20 20 20 20 20 20 18 Most Carried 20 | 6 10 10 20 18 19 20 20 19 Average Carried 13 | 1 6 10 12 17 17 19 19 16 Final Capacity 20 | 8 20 20 20 20 20 20 20 5 Final Carried 20 | 1 10 10 18 17 19 20 20 5 Class Distribution -------------------- 60% | Scavenger-Mutant 39% | Mutant Dominant Class ---------------- Mutant | -10/Materials Scavenger-Mutant | -10/Mines Scavenger-Mutant | -9/Materials Mutant | -9/Mines Scavenger-Mutant | -9/Exiles Scavenger-Mutant | -8/Mines Scavenger-Mutant | -8/Materials Scavenger-Mutant | -7/Factory Resources | -11 -10 -10 -9 -9 -9 -8 -8 -7 ----------- Run | Yrd Mat Min Mat Min Exi Min Mat Fac Matter Collected 2398 | 290 361 . 741 98 10 . 635 263 Remotely . | . . . . . . . . . Salvage Created 2926 | 66 440 . 969 103 . . 1210 138 Parts 181 | 2 36 . 73 4 . . 62 4 Haulers Intercepted 4 | . 1 . 1 . . . 2 . Recyclers Shooed 5 | . . . 2 . . . 3 . Parts Field Recycled . | . . . . . . . . . Retrieved Matter . | . . . . . . . . . Parts Self-Destructed . | . . . . . . . . . Prevented . | . . . . . . . . . Kills | -11 -10 -10 -9 -9 -9 -8 -8 -7 ------- Run | Yrd Mat Min Mat Min Exi Min Mat Fac Combat Hostiles Destroyed 42 | . 9 . 17 2 . . 10 4 Guns 42 | . 9 . 17 2 . . 10 4 Classes Destroyed 13 | 1 5 . 3 1 . . 3 . Worker 5 | . 1 . 1 . . . 3 . Builder 1 | . . . 1 . . . . . Tunneler 1 | . . . . . . . 1 . Hauler 4 | . 1 . 1 . . . 2 . Recycler 8 | 1 . . 2 . . . 5 . Mechanic 1 | . . . . . . . 1 . Operator 3 | . . . 2 . . . . 1 Watcher 9 | . 3 . 4 . . . 1 1 Swarmer 13 | . 3 . 6 . . . . 4 Grunt 19 | . 6 . 7 1 . . 5 . Duelist 1 | . . . . 1 . . . . Sentry 8 | . . . 4 . . . 4 . Heavy 1 | . . . . . . . 1 . Best Kill Streak 8 | 1 4 . 8 2 . . 8 5 Combat Bots Only 5 | . 3 . 5 2 . . 3 4 Max Kills in Single Turn 2 | 1 1 . 2 1 . . 1 1 Gunslinging 1 | . . . 1 . . . . . Exploded . | . . . . . . . . . Melee . | . . . . . . . . . Uniques/NPCs Destroyed . | . . . . . . . . . Combat | -11 -10 -10 -9 -9 -9 -8 -8 -7 -------- Run | Yrd Mat Min Mat Min Exi Min Mat Fac Hostile Shots Fired 258 | . 54 . 133 10 . . 40 21 Missed 64 | . 12 . 35 2 . . 12 3 Damage Taken 3019 | . 477 . 989 148 . . 648 757 Core 477 | . 76 . 80 24 . . 49 248 Absorbed by Shields 71 | . . . 18 53 . . . . Redirected to Shielding 57 | . 42 . 15 . . . . . Core Remaining (%) 83 | 100 . 69 . . . 74 91 . Volleys Fired 258 | 10 58 . 85 11 . . 76 18 Largest 2 | 2 2 . 2 2 . . 2 2 Hottest 100 | 40 100 . 46 46 . . 46 46 Shots Fired 494 | 20 104 . 164 22 . . 152 32 Gun 493 | 20 103 . 164 22 . . 152 32 Cannon . | . . . . . . . . . Launcher . | . . . . . . . . . Special 1 | . 1 . . . . . . . Kinetic 493 | 20 103 . 164 22 . . 152 32 Thermal 1 | . 1 . . . . . . . Explosive . | . . . . . . . . . Electromagnetic . | . . . . . . . . . Robot Hit Streak 20 | 4 12 . 7 19 . . 20 6 Robot Miss Streak 5 | 5 3 . 5 1 . . 3 2 Penetration Max . | . . . . . . . . . Secondary Targets 4 | . . . 3 . . . . 1 Max Gunslinging Chain 1 | . . . 1 . . . . 1 Shots Hit Robots 317 | 9 62 . 95 19 . . 109 23 Core Hits 129 | 2 24 . 43 3 . . 47 10 Critical Kills 1 | . . . 1 . . . . . Critical Parts Destroyed 1 | . . . 1 . . . . . Critical Strikes 2 | . . . 2 . . . . . Destroy 2 | . . . 2 . . . . . Melee Attacks 10 | . . . . . . . 1 9 Impact . | . . . . . . . . . Slashing 10 | . . . . . . . 1 9 Piercing . | . . . . . . . . . Sneak Attacks 2 | . . . . . . . . 2 Combat Hostiles . | . . . . . . . . . Follow-up Attacks . | . . . . . . . . . Damage Inflicted 4859 | 112 825 . 1403 298 . . 1714 507 Guns 4620 | 112 813 . 1383 298 . . 1692 322 Cannons . | . . . . . . . . . Explosions . | . . . . . . . . . Melee 185 | . . . . . . . . 185 Ramming 54 | . 12 . 20 . . . 22 . Kinetic 4620 | 112 813 . 1383 298 . . 1692 322 Thermal . | . . . . . . . . . Explosive . | . . . . . . . . . Electromagnetic . | . . . . . . . . . Impact . | . . . . . . . . . Slashing 185 | . . . . . . . . 185 Piercing . | . . . . . . . . . Highest Corruption 5 | . 2 2 . . . . . 5 Average Corruption 2 | . 2 2 . . . . . 5 Corruption Purged . | . . . . . . . . . Corruption Blocked . | . . . . . . . . . Effects 7 | . 6 1 . . . . . . Message Errors 5 | . 4 1 . . . . . . Matter Fused 2 | . 2 . . . . . . . Overload Shots . | . . . . . . . . . Overflow Damage 127 | . . . . . . . . 127 Projectiles . | . . . . . . . . . Explosions 77 | . . . . . . . . 77 Melee 50 | . . . . . . . . 50 Knockbacks . | . . . . . . . . . Impact . | . . . . . . . . . Kinetic . | . . . . . . . . . Secondary . | . . . . . . . . . Self-Inflicted Damage 107 | . . . . . . . . 107 Shots 1 | . . . . . . . . 1 Rammed 4 | . 1 . 2 . . . 1 . Targets Rammed 5 | . 1 . 3 . . . 1 . Kicked . | . . . . . . . . . Crushed 1 | . . . 1 . . . . . Highest Temperature 27 | . 20 . 27 . . . 19 . Average Temperature 5 | . 4 . 5 . . . 4 . Received Heat Transfer 660 | . 216 . 234 12 . . 198 . Siege Activations . | . . . . . . . . . Robots Corrupted . | . . . . . . . . . Combat Hostiles . | . . . . . . . . . Parts Fried . | . . . . . . . . . Impact Corruptions . | . . . . . . . . . Robots Melted . | . . . . . . . . . Combat Hostiles . | . . . . . . . . . Parts Melted . | . . . . . . . . . Heat Transferred . | . . . . . . . . . Parts Sabotaged . | . . . . . . . . . Parts Stolen . | . . . . . . . . . Parts Stripped . | . . . . . . . . . Power Chain Reactions . | . . . . . . . . . Alert | -11 -10 -10 -9 -9 -9 -8 -8 -7 ------- Run | Yrd Mat Min Mat Min Exi Min Mat Fac Peak Influence 320 | 5 195 19 320 147 . . 181 157 Initial 77 | . 3 19 7 77 . . . 47 Average 103 | 4 98 19 173 99 . . 54 78 Maximum Alert Level 1 | . . . 1 . . . . . Low Security (%) 85 | 100 100 100 49 100 . 100 100 100 Level 1 14 | . . . 50 . . . . . Level 2 . | . . . . . . . . . Level 3 . | . . . . . . . . . Level 4 . | . . . . . . . . . Level 5 . | . . . . . . . . . High Security . | . . . . . . . . . Max Security . | . . . . . . . . . Squads Dispatched 8 | . 1 . 2 . . . 3 2 Investigation 1 | . . . . . . . 1 . Extermination 1 | . . . . . . . . 1 Reinforcement 6 | . 1 . 2 . . . 2 1 Assault . | . . . . . . . . . Garrison . | . . . . . . . . . Intercept . | . . . . . . . . . Searches Triggered . | . . . . . . . . . Construction Impeded . | . . . . . . . . . Haulers Reinforced . | . . . . . . . . . Active Scanning Responses . | . . . . . . . . . Cargo Convoy Interrupts . | . . . . . . . . . Stealth | -11 -10 -10 -9 -9 -9 -8 -8 -7 --------- Run | Yrd Mat Min Mat Min Exi Min Mat Fac Distress Signals 11 | . 2 . 5 . . . 3 1 Communications Jammed . | . . . . . . . . . Distress Signals . | . . . . . . . . . Times Spotted 92 | . 24 . 33 3 . . 24 8 Peak Tracking Total 7 | . 4 . 7 3 . . 4 5 Tactical Retreats 7 | . 1 . 2 1 . . 2 1 Traps | -11 -10 -10 -9 -9 -9 -8 -8 -7 ------- Run | Yrd Mat Min Mat Min Exi Min Mat Fac Traps Triggered 1 | . 1 . . . . . . . Indirectly . | . . . . . . . . . Trap Hack Attempts . | . . . . . . . . . Triggered . | . . . . . . . . . Disarmed . | . . . . . . . . . Reprogrammed . | . . . . . . . . . Reused . | . . . . . . . . . Traps Extracted . | . . . . . . . . . Installed . | . . . . . . . . . Triggered . | . . . . . . . . . Machines | -11 -10 -10 -9 -9 -9 -8 -8 -7 ---------- Run | Yrd Mat Min Mat Min Exi Min Mat Fac Machines Disabled 3 | . . . 1 . . . . 2 Max in Single Turn 2 | . . . 1 . . . . 2 Machines Repaired . | . . . . . . . . . Machines Dismantled . | . . . . . . . . . Machines Sabotaged . | . . . . . . . . . Overloaded Fab Kills . | . . . . . . . . . Hacking | -11 -10 -10 -9 -9 -9 -8 -8 -7 --------- Run | Yrd Mat Min Mat Min Exi Min Mat Fac Machines Accessed 19 | . 6 . 3 1 2 . 6 1 Terminals 16 | . 6 . 3 1 . . 5 1 Fabricators . | . . . . . . . . . Repair Stations . | . . . . . . . . . Recycling Units . | . . . . . . . . . Scanalyzers 1 | . . . . . . . 1 . Garrison Access . | . . . . . . . . . Total Hacks 57 | . 18 . 6 4 5 . 20 4 Successful 35 | . 10 . 3 1 5 . 14 2 Failed 21 | . 7 . 3 3 . . 6 2 Catastrophic 3 | . 1 . . 1 . . 1 . Database Lockouts 1 | . 1 . . . . . . . Manual 33 | . 14 . 6 2 1 . 7 3 Terminals 46 | . 18 . 6 4 . . 14 4 Fabricators . | . . . . . . . . . Repair Stations . | . . . . . . . . . Recycling Units . | . . . . . . . . . Scanalyzers 6 | . . . . . . . 6 . Garrison Access . | . . . . . . . . . Terminal Hacks 20 | . 7 . 1 1 5 . 5 1 Record 4 | . . . . . 4 . . . Robot Schematic 1 | . 1 . . . . . . . Robot Analysis 2 | . . . . . . . 2 . Prototype ID Bank 3 | . 1 . . . . . 2 . Branch Access Points 1 | . 1 . . . . . . . Alert Level 2 | . 1 . . . . . . 1 Locate Traps 3 | . 2 . 1 . . . . . Zone Layout 3 | . 1 . . 1 . . 1 . Derelict Proto ID Bank 1 | . . . . . 1 . . . Fabricator Hacks . | . . . . . . . . . Repair Station Hacks . | . . . . . . . . . Recycling Unit Hacks . | . . . . . . . . . Scanalyzer 5 | . . . . . . . 5 . Insert Component 2 | . . . . . . . 2 . Analyze 3 | . . . . . . . 3 . Garrison Access Hacks . | . . . . . . . . . Unauthorized Hacks 10 | . 3 . 2 . . . 4 1 Terminals 10 | . 3 . 2 . . . 4 1 Assimilate 1 | . . . . . . . 1 . Botnet 6 | . 2 . 1 . . . 2 1 Operators 3 | . 1 . 1 . . . 1 . Fabricators . | . . . . . . . . . Repair Stations . | . . . . . . . . . Recycling Units . | . . . . . . . . . Scanalyzers . | . . . . . . . . . Garrison Access . | . . . . . . . . . Data Cores Recovered . | . . . . . . . . . Used . | . . . . . . . . . Hacking Detections 14 | . 4 . 3 1 . . 5 1 Full Trace Events 1 | . . . . . . . 1 . Feedback Events . | . . . . . . . . . Feedback Blocked . | . . . . . . . . . Robot Schematics Acquired 1 | . 1 . . . . . . . Robots Built . | . . . . . . . . . Authchips . | . . . . . . . . . Time . | . . . . . . . . . Total Robot Build Rating . | . . . . . . . . . Part Schematics Acquired 1 | . . . . . . . 1 . Parts Built . | . . . . . . . . . Authchips . | . . . . . . . . . Time . | . . . . . . . . . Total Part Build Rating . | . . . . . . . . . Parts Repaired . | . . . . . . . . . Time . | . . . . . . . . . Parts Recycled . | . . . . . . . . . Recycled Matter . | . . . . . . . . . Retrieved Matter . | . . . . . . . . . Retrieved Components . | . . . . . . . . . Parts Scanalyzed 2 | . . . . . . . 2 . Part Schematics Acquired 1 | . . . . . . . 1 . Parts Damaged 1 | . . . . . . . 1 . Bothacking | -11 -10 -10 -9 -9 -9 -8 -8 -7 ------------ Run | Yrd Mat Min Mat Min Exi Min Mat Fac Used RIF Installer . | . . . . . . . . . Robots Hacked . | . . . . . . . . . Non-combat . | . . . . . . . . . Combat . | . . . . . . . . . Robot Hacks Applied . | . . . . . . . . . Relay Couplers Released . | . . . . . . . . . Fabnet Peak Effective % . | . . . . . . . . . Robots Rewired . | . . . . . . . . . Allies Hacked . | . . . . . . . . . Hacks Repelled . | . . . . . . . . . Allies | -11 -10 -10 -9 -9 -9 -8 -8 -7 -------- Run | Yrd Mat Min Mat Min Exi Min Mat Fac Total Allies . | . . . . . . . . . Largest Group . | . . . . . . . . . Highest-Rated Group . | . . . . . . . . . Highest-Rated Ally . | . . . . . . . . . Total Orders 2 | . . . . . . . 2 . EXPLORE 2 | . . . . . . . 2 . Ally Attacks . | . . . . . . . . . Total Damage . | . . . . . . . . . Kills . | . . . . . . . . . Allies Corrupted . | . . . . . . . . . Allies Melted . | . . . . . . . . . Intel | -11 -10 -10 -9 -9 -9 -8 -8 -7 ------- Run | Yrd Mat Min Mat Min Exi Min Mat Fac Robot Analysis Total 2 | . . . . . . . 2 . Derelict Logs Recovered 2 | . . . . 2 . . . . Drone Launches 2 | . . . . . . . 2 . Drone Recoveries 2 | . . . . . . . 2 . Exploration | -11 -10 -10 -9 -9 -9 -8 -8 -7 ------------- Run | Yrd Mat Min Mat Min Exi Min Mat Fac Turns Passed 5012 | 84 1303 77 1262 300 442 36 974 534 Spaces Moved 2282 | 30 511 56 597 166 275 21 418 208 Core . | . . . . . . . . . Treads 1819 | 30 127 . 597 166 275 21 418 185 Legs . | . . . . . . . . . Wheels 440 | . 384 56 . . . . . . Hover . | . . . . . . . . . Flight 23 | . . . . . . . . 23 Fastest Speed 30 | 160 140 140 160 160 160 160 160 30 Average Speed 171 | 160 212 140 160 160 160 160 164 151 Slowest Speed 320 | 160 320 140 160 160 160 160 166 170 Overloaded Moves . | . . . . . . . . . Propulsion Burnouts . | . . . . . . . . . Robots Hopped . | . . . . . . . . . Cave-ins Triggered 2 | . . . . . . . . 2 Exploration Rate (%) 38 | 4 94 25 57 36 62 9 53 4 Regions Visited 8 Branch Regions 4 Pre-discovered Areas 3 | . . . . 2 1 . . . Known Exits Taken 1 | . 1 . . . . . . . Unknown Exits Taken 7 | 1 . 1 1 1 1 1 1 . Scrap Searched 1 | . . . . 1 . . . . Spaces Dug 7 | . 1 . . . . . 1 5 Terrain Destroyed 34 | . 1 . . . . . 1 32 Melee 6 | . . . . . . . 1 5 Projectile 1 | . 1 . . . . . . . AOE 27 | . . . . . . . . 27 Terrain Rammed . | . . . . . . . . . Walls Destroyed . | . . . . . . . . . Machines Disabled . | . . . . . . . . . Actions | -11 -10 -10 -9 -9 -9 -8 -8 -7 --------- Run | Yrd Mat Min Mat Min Exi Min Mat Fac Total 2912 | 47 617 55 754 179 277 23 573 387 Wait 182 | . 20 . 13 . . . 30 119 Move 2274 | 29 510 55 596 165 274 20 417 208 Hop . | . . . . . . . . . Pick Up 42 | . 12 . 13 . 1 1 11 4 Fast Attach 24 | . 4 . 7 . 1 . 5 7 Attach 8 | . . . 1 1 . . 3 3 Detach 8 | . 1 . 4 . 1 . 2 . Swap 42 | 3 7 . 14 1 . 2 9 6 Drop 59 | 5 4 . 18 1 . . 18 13 Fire 258 | 10 58 . 85 11 . . 76 18 Melee 10 | . . . . . . . 1 9 Ram . | . . . . . . . . . Kick . | . . . . . . . . . Crush 5 | . 1 . 3 . . . 1 . Escape Stasis . | . . . . . . . . . Rewire . | . . . . . . . . . Trap . | . . . . . . . . . Miscellaneous . | . . . . . . . . . Route ------- -11/Scrapyard -10/Materials (discovered 3 exits: *Mat x2 / *Min) -10/Mines -9/Materials (discovered 2 exits: *Mat / *Min) -9/Mines (discovered 2 exits: *Mat / *Exi) -9/Exiles -8/Mines -8/Materials (discovered 2 exits: *Fac x2) -7/Factory History --------- Turn | Location | Event 11 | -11/Scrapyard | Discovered new exit (range 3) 85 | -11/Scrapyard | Entered Materials 195 | -10/Materials | Identified exit to Mines 308 | -10/Materials | Build established: Mutant 833 | -10/Materials | Discovered new exit (range 10) 1040 | -10/Materials | Central database locked down 1213 | -10/Materials | Discovered new exit (range 15) 1285 | -10/Materials | Build established: Scavenger-Mutant 1388 | -10/Materials | Entered Mines 1449 | -10/Mines | Discovered new exit (range 13) 1465 | -10/Mines | Entered Materials 1465 | -9/Materials | Evolved 2 slots: Propulsion x1, Utility x1 1844 | -9/Materials | Build established: Mutant 1845 | -9/Materials | Discovered new exit (range 9) 2172 | -9/Materials | Build established: Scavenger-Mutant 2636 | -9/Materials | Discovered new exit (range 6) 2727 | -9/Materials | Entered Mines 2751 | -9/Mines | Met a Derelict bent on vengeance 2775 | -9/Mines | Learned location of Zion (-7) 2790 | -9/Mines | Build established: Mutant 2891 | -9/Mines | Discovered new exit (range 13) 2895 | -9/Mines | A Derelict revealed a hidden shortcut to a safe place 3019 | -9/Mines | Deemed a non-threat by the Exiles lab entrance 3021 | -9/Mines | Discovered new exit (range 5) 3027 | -9/Mines | Entered Exiles 3066 | -9/Exiles | Met 8R-AWN 3093 | -9/Exiles | Met EX-HEX 3160 | -9/Exiles | Met EX-DEC 3193 | -9/Exiles | Build established: Scavenger-Mutant 3203 | -9/Exiles | Met EX-BIN 3221 | -9/Exiles | Aligned with FarCom system 3223 | -9/Exiles | Given EX-Vault access code 3259 | -9/Exiles | Opened EX-Vault 3282 | -9/Exiles | Found Supersonic Drone Bay 3316 | -9/Exiles | Warned to stay clear of 0b10 Research branches 3326 | -9/Exiles | Exiles lab attacked by MAIN.C 3453 | -9/Exiles | Discovered new exit (range 12) 3469 | -9/Exiles | Left Exiles lab with Supersonic Drone Bay 3469 | -9/Exiles | Entered Mines 3481 | -8/Mines | Discovered new exit (range 14) 3505 | -8/Mines | Entered Materials 3505 | -8/Materials | Evolved 2 slots: Utility x2 3521 | -8/Materials | Discovered new exit (range 62) 4454 | -8/Materials | Discovered new exit (range 14) 4479 | -8/Materials | Entered Factory 4479 | -7/Factory | Evolved 2 slots: Propulsion x1, Utility x1 4597 | -7/Factory | Crushed by falling debris 5010 | -7/Factory | Crushed by falling debris 5013 | -7/Factory | Self-destructed Last Messages --------------- 04991_ Acquired System Shield. 04993_ Acquired Imp. Grenade Launcher. 04994_ Dropped Lgt. Armor Plating. 04995_ Acquired Hacking Suite. 04997_ Dropped Graphene Brace. 04998_ Acquired Hacking Suite. 04999_ Dropped Lrg. Matter Pod. 05000_ Extracted 125 matter. 05000_ Acquired Lrg. Matter Pod. 05010_ The unstable cave ceiling collapses. 05010_ Crushed by falling debris. 05010_ Hacking Suite destroyed. 05010_ System corrupted by crushing effect (+5). 05010_ Nuclear Reactor explodes. 05010_ Xenon Bombardment Thruster destroyed. 05010_ Destroyed Xenon Bombardment Thruster. 05010_ Axe destroyed. 05010_ Destroyed Axe. 05010_ Terminal disabled. 05013_ The unstable cave ceiling collapses. Map ----- +----------------------------------------------------+ | ???????????????????????????????????????????? | | ???????????????????????????????????????????? | | ???????????????????????????????????????????? | | ???????????????????????????????????????????? | | ???????????????????????????????????????????? | | ???????????????????????????????????????????? | | ???????????????????????????????????????????? | | ???????????????????????????????????????????? | | ???????????????????????????????????????????? | | ???????????????????????????????????????????? | | ???????????????????????????????????????????? | | ???????????????????????????????????????????? | | ???????????????????????????????????????????? | | ???????????????????????####????????????????? | | ???????????????????????####????????????????? | | ????????????????? ???? ## ????????????? | | ????????????????? ???? ##+##????????????? | | ?????????????????? [[ ! # ????????????? | | ????????????????? + ?????????Y???? | | ??????????????? # """ """ # ????????????? | | ???????????????## """ """ ## ##????????????? | | ???????????????## """ """ ## ##????????????? | | ????????????????? ## ###???????????? | | ?????????????????#### # ###???????????? | | ?????????########## ##???????????? | | ?????????########## ! @ ##???????????? | | ?????????## ! * ##???????????? | | ?????????## """ """ != ############## | | ?????????## """ """ ! ############## | | ?????????## """ """ ! ##### # | | ?????????## = """ ##### """"""" # | | ?????????## ! # """ ##?## """"""" # | | ?????????## == # """ ##?## """"""" # | | ? ### # ##### """"""" # | | ?+#############+######+#####+##### # | | * # """"""" # | | # """"""" # | | "" + """"""" # | | ?" # """"""" # | | ?" ^ # # | | ?" ###########+############+##+# """"""" # | | "" ### ! * ## # """"""" # | | "" ?## ] ## # """"""" # | | ?## ## # """"""" # | | "" ?## """"""" """"""" ## """"# # | | "" ### """"""" """"""" ## """"########### | | "" ### """"""" """"""" ## """"########### | | "" ### """"""" """"""" ## """"##????????? | | "" ###"################## """"##????????? | | "" ############# """"##????????? | +----------------------------------------------------+ Best States ------------- Heat Dissipation 50 Energy Generation 14 Energy Capacity 265 Matter Stores 300 Matter Capacity 300 Sight Range 16 Robot Scan Range 14 Terrain Scan Density 10 Armor Coverage 300 Power Shielding 33 Propulsion Shielding 33 Weapon Cycling 15 Evasion (%) 64 Targeting Accuracy 6 Recoil Reduction 7 Offensive Hacking 40 Defensive Hacking 10 Item Schematics ----------------- Imp. VTOL Module | -8/Materials | Scanalyzed Robot Schematics ------------------ O-16 Technician | -10/Materials | Hacked Fabricated ------------ Nothing Alien Tech Used ----------------- None Achievements -------------- None Challenges ------------ None Game ------ Seed CarbideAnalysisArmor Manual? 0 Play Time 00:45:12 Cumulative 16.0 hours Start 2024.04.05 @ 18:29:39 End 2024.04.05 @ 19:16:08 Sessions 1 Manual Loads 0 Difficulty Rogue Special Mode None Game No. 26 Rogue 26 Adventurer 0 Explorer 0 Win Type - Total 0 Types 0/0/0/0/0/0/0/0/0 Lore% 21 Gallery% 19 Achievement% 26 Wizard Run 0 Options --------- Layout 0 ASCII 0 Keyboard 0 Movement Mouse Keybinds 0 Fullscreen 2 Font 24/Proggy Map View 76x50 Zoom Use 0% Tactical HUD 1 Map Filters NONE Filters NONE Steam 1 RUN: ab2e9ea5-4783-412e-8475-80f03d31690c